fUSD/lending_fUSD_20260131
["ID","MTS","AMOUNT","RATE_DAILY","PERIOD"]
[404096113,1769825435238,-500.0,0.00017999,2]
[404096114,1769825435248,-500.0,0.00017999,2]
[404096115,1769825435261,-500.0,0.00017999,2]
[404096116,1769825435271,-500.0,0.00017999,2]
[404096117,1769825435280,-500.0,0.00017999,2]
[404096118,1769825435290,-500.0,0.00017999,2]
[404096119,1769825435299,-500.0,0.00017999,2]
[404096120,1769825435308,-500.0,0.00017999,2]
[404096121,1769825435318,-500.0,0.00017999,2]
[404096122,1769825435328,-250.0,0.00017999,2]
[404096123,1769825435339,-2320.0,0.00018,2]
[404096124,1769825435349,-167542.5670573,0.00018,2]
[404096125,1769825435362,-895.86861586,0.00018,2]
[404096136,1769825437601,-6576.0,0.00017591,2]
[404096137,1769825437615,-27519.57651,0.00018,2]
[404096138,1769825437647,-327.61807299,0.00018,2]
[404096139,1769825437658,-1750.70316796,0.00018,2]
[404096140,1769825437668,-7118.08635829,0.00018,2]
[404096142,1769825437866,-985.68254733,0.00018,2]
[404096144,1769825437882,-1346.99999996,0.00018,2]
[404096145,1769825437895,-3225.58640367,0.00018,2]
[404096150,1769825438155,-980.94016078,0.00018,2]
[404096151,1769825438195,-3276.95,0.00018,2]
[404096152,1769825438207,-996.81646882,0.00018,2]
[404096155,1769825439653,-151.0,0.00017207,2]
[404096156,1769825439663,-2737.67946625,0.00018,2]
[404096157,1769825439676,-975.79008711,0.00018,2]
[404096158,1769825439710,-374.53020769,0.00018,2]
[404096159,1769825439876,-138740.7671645,0.00018,2]
[404096160,1769825439886,-99628.92388949,0.00018,2]
[404096161,1769825439897,-725.03182541,0.00018,2]
[404096162,1769825439925,-12905.37534676,0.00018,2]
[404096163,1769825440038,-5019.46493238,0.00018,2]
[404096164,1769825440050,-3708.748639,0.00018,2]
[404096165,1769825440062,-12977.18458114,0.00018,2]
[404096166,1769825440073,-7616.11512361,0.00018,2]
[404096176,1769825443983,-262.00320104,0.000179,2]
[404096177,1769825444011,-1657.2357622,0.000179,2]
[404096178,1769825444020,-38199.87348036,0.00018,2]
[404096179,1769825444032,-388.380008,0.00018,2]
[404096184,1769825444238,-688.00917974,0.00018,2]
[404096185,1769825444263,-333.57993276,0.00018,2]
[404096186,1769825446010,-589.09581466,0.000179,2]
[404096188,1769825446019,-3019.96418534,0.00018,2]
[404096189,1769825446030,-537.2574117,0.00018,2]
[404096190,1769825446042,-2635.19083178,0.00018,2]
[404096196,1769825549714,3950.84651257,0.00014439,2]
[404096197,1769825564916,422.0,0.00024866,120]
[404096201,1769826435126,-51.95348743,0.00014439,2]
[404096202,1769826435146,-813.1925537,0.00015465,2]
[404096203,1769826435165,-566.0,0.00016466,2]
[404096204,1769826435186,-151.0,0.00016571,2]
[404096205,1769826435205,-237.75,0.00016571,2]
[404096206,1769826435227,-1609.9,0.00016631,2]
[404096207,1769826435248,-604.29293358,0.00016708,2]
[404096210,1769826628497,978.0,0.00024866,120]
[404096211,1769826628524,1400.0,0.00024866,120]
[404096212,1769826628550,1400.0,0.00024866,120]
[404096213,1769826628575,1400.0,0.00024866,120]
[404096214,1769826628599,1400.0,0.00024866,120]
[404096215,1769826628623,1400.0,0.00024866,120]
[404096216,1769826628648,1400.0,0.00024866,120]
[404096217,1769826628672,622.0,0.00024866,120]
[404096230,1769826632436,-167.24,0.00016458,2]
[404096231,1769826632447,-1000.0,0.00016576,2]
[404096232,1769826632458,-151.0,0.00016586,2]
[404096233,1769826632468,-151.0,0.00016586,2]
[404096234,1769826632481,-151.0,0.00016586,2]
[404096235,1769826632491,-292.03706642,0.00016708,2]
[404096236,1769826632502,-1475.8,0.00016709,2]
[404096237,1769826632512,-1200.0,0.00016717,2]
[404096238,1769826632524,-8527.71577944,0.00016718,2]
[404096239,1769826632533,-896.33,0.00016762,2]
[404096240,1769826632543,-896.33,0.00016815,2]
[404096241,1769826632554,-174.61919141,0.00016834,2]
[404096242,1769826632564,-322.6107,0.00016834,2]
[404096243,1769826632574,-209.40437684,0.00016834,2]
[404096244,1769826632583,-896.33,0.00016868,2]
[404096245,1769826632592,-217.15233878,0.00016889,2]
[404096246,1769826632602,-896.33,0.00016921,2]
[404096247,1769826632611,-225.18697532,0.00016944,2]
[404096248,1769826632623,-152.03,0.00016967,2]
[404096249,1769826632636,-896.33,0.00016975,2]
[404096250,1769826632650,-1213.81,0.00016988,2]
[404096251,1769826632660,-233.51889341,0.00016999,2]
[404096252,1769826632669,-250.0,0.00017,2]
[404096253,1769826632679,-3485.39276703,0.00017,2]
[404096254,1769826632689,-896.33,0.00017028,2]
[404096255,1769826632698,-242.15909246,0.00017054,2]
[404096256,1769826632707,-896.33,0.00017081,2]
[404096257,1769826632717,-9859.08324829,0.00017085,2]
[404096258,1769826632726,-1144.53,0.0001709,2]
[404096259,1769826632736,-151.25,0.000171,2]
[404096260,1769826632745,-251.11897888,0.00017109,2]
[404096261,1769826632755,-896.33,0.00017135,2]
[404096262,1769826632765,-200.0,0.00017156,2]
[404096263,1769826632775,-260.4103811,0.00017164,2]
[404096264,1769826632785,-896.33,0.00017188,2]
[404096265,1769826632794,-270.0455652,0.00017219,2]
[404096266,1769826632804,-896.33,0.00017241,2]
[404096267,1769826632813,-280.03725112,0.00017274,2]
[404096268,1769826632823,-896.33,0.00017295,2]
[404096269,1769826632832,-4718.08248667,0.0001732,2]
[404096270,1769826632842,-290.39862941,0.00017329,2]
[404096271,1769826632852,-896.33,0.00017348,2]
[404096272,1769826632862,-178.37934897,0.00017382,2]
[404096273,1769826632872,-301.1433787,0.00017384,2]
[404096274,1769826632883,-896.33,0.00017401,2]
[404096275,1769826632894,-166.66,0.00017425,2]
[404096276,1769826632903,-387.9733416,0.00017439,2]
[404096277,1769826632913,-896.33,0.00017454,2]
[404096278,1769826632922,-3757.87719173,0.00017494,2]
[404096279,1769826632932,-896.33,0.00017508,2]
[404096280,1769826632941,-896.33,0.00017561,2]
[404096281,1769826632951,-896.33,0.00017614,2]
[404096282,1769826632960,-896.33,0.00017668,2]
[404096283,1769826632970,-150.0,0.00017699,2]
[404096284,1769826632979,-203.17174949,0.00017703,2]
[404096285,1769826632988,-510.51331421,0.00017703,2]
[404096286,1769826632997,-721.12765535,0.00017703,2]
[404096287,1769826633006,-2123.39734685,0.00017703,2]
[404096288,1769826633015,-192.30748125,0.00017703,2]
[404096289,1769826633024,-859.80605061,0.00017703,2]
[404096290,1769826633033,-182.04382654,0.00017714,5]
[404096291,1769826633043,-2444.0,0.00017714,2]
[404096292,1769826633052,-5934.0,0.00017714,2]
[404096293,1769826633063,-896.33,0.00017721,2]
[404096294,1769826633072,-294.84674609,0.00017754,2]
[404096295,1769826633083,-150.0,0.00017848,2]
[404096296,1769826633094,-341.051,0.00017862,2]
[404096297,1769826633104,-13375.07532196,0.0001788,2]
[404096298,1769826633113,-161.09533848,0.000179,2]
[404096299,1769826633123,-10761.85335095,0.000179,2]
[404096300,1769826633133,-3750.90966355,0.000179,2]
[404096301,1769826633142,-203.0,0.000179,2]
[404096302,1769826633151,-500.0,0.00017973,2]
[404096303,1769826633160,-189.78564527,0.00017973,2]
[404096304,1769826633169,-500.0,0.00017973,2]
[404096305,1769826633178,-500.0,0.00017973,2]
[404096306,1769826633187,-500.0,0.00017973,2]
[404096307,1769826633197,-500.0,0.00017973,2]
[404096308,1769826633206,-500.0,0.00017973,2]
[404096309,1769826633215,-500.0,0.00017973,2]
[404096310,1769826633225,-500.0,0.00017973,2]
[404096311,1769826633234,-500.0,0.00017973,2]
[404096312,1769826633243,-500.0,0.00017973,2]
[404096313,1769826633252,-500.0,0.00017973,2]
[404096314,1769826633261,-500.0,0.00017973,2]
[404096315,1769826633270,-500.0,0.00017973,2]
[404096316,1769826633279,-190.23,0.00017973,2]
[404096317,1769826633288,-5830.21733038,0.0001799,2]
[404096318,1769826633299,-947.2156745,0.00017995,2]
[404096319,1769826633308,-389.61832224,0.00017999,2]
[404096320,1769826633317,-166.22897951,0.00017999,2]
[404096321,1769826633327,-1874.0,0.00018,2]
[404096322,1769826633336,-234831.79969273,0.00018,2]
[404096323,1769826633348,-356830.521,0.00018,2]
[404096324,1769826633359,-30804.73159458,0.00018,2]
[404096325,1769826633553,-338.29827569,0.00018,2]
[404096368,1769826637865,-308.16322857,0.00017075,2]
[404096446,1769826639773,-28.99085207,0.00017075,2]
[404096447,1769826639782,-456.1722,0.00017075,2]
[404096448,1769826639791,-220.32052839,0.00017573,2]
[404096449,1769826640089,-597.032921,0.00017573,2]
[404096450,1769826641388,778.0,0.00024866,120]
[404096451,1769826641412,1400.0,0.00024866,120]
[404096452,1769826641435,1400.0,0.00024866,120]
[404096453,1769826641458,1400.0,0.00024866,120]
[404096454,1769826641484,1400.0,0.00024866,120]
[404096455,1769826643390,-1861.03274421,0.00017573,2]
[404096456,1769826643486,-551.8038064,0.00017573,2]
[404096457,1769826643495,-82.63487298,0.00017714,2]
[404096470,1769826645870,-2160.8648565,0.00017714,2]
[404096471,1769826645928,-1601.51403604,0.00017714,2]
[404096472,1769826646086,-1000.0,0.00017714,2]
[404096498,1769826655046,7664.0,0.00022,120]
[404096499,1769826663088,10000.0,0.00021,120]
[404096500,1769826672171,10000.0,0.00021,120]
[404096501,1769826678182,10000.0,0.00021,120]
[404096502,1769826685527,10000.0,0.00021,120]
[404096503,1769826691601,10000.0,0.00021,120]
[404096504,1769826697343,10000.0,0.00021,120]
[404096505,1769826705824,10000.0,0.00021,120]
[404096506,1769826711891,10000.0,0.00021,120]
[404096507,1769826717616,10000.0,0.00021,120]
[404096508,1769826723336,10000.0,0.00021,120]
[404096509,1769826730232,10000.0,0.00021,120]
[404096510,1769826737046,10000.0,0.00021,120]
[404096511,1769826743682,10000.0,0.00021,120]
[404096512,1769826749704,10000.0,0.00021,120]
[404096513,1769826756052,10000.0,0.00021,120]
[404096514,1769826761874,10000.0,0.00021,120]
[404096515,1769826767709,10000.0,0.00021,120]
[404096516,1769826775316,10000.0,0.00021,120]
[404096517,1769826781549,10000.0,0.00021,120]
[404096518,1769826787300,10000.0,0.00021,120]
[404096519,1769826793724,10000.0,0.00021,120]
[404096520,1769826800211,5083.94,0.00021,120]
[404096521,1769826814996,5083.0,0.00021,120]
[404096523,1769826825980,2032.25,0.00012889,2]
[404096552,1769827635442,-166.66,0.00016066,2]
[404096553,1769827635469,-236.74889747,0.00016371,2]
[404096556,1769827796397,151.0,0.00016035,2]
[404096557,1769827813327,151.0,0.00016054,2]
[404096558,1769827830742,151.0,0.00016048,2]
[404096564,1769827832702,-416.09844174,0.00016372,2]
[404096565,1769827832714,-7.90155826,0.00016372,2]
[404096566,1769827832723,-300.0,0.00016372,2]
[404096567,1769827832732,-193.64269913,0.00016372,2]
[404096568,1769827832756,-1006.35730087,0.00016372,2]
[404096569,1769827832765,-300.0,0.00016372,2]
[404096570,1769827832775,-300.0,0.00016372,2]
[404096571,1769827832784,-500.0,0.00016373,2]
[404096572,1769827832793,-394.06192703,0.00016373,2]
[404096573,1769827832805,-106.32828189,0.00016373,2]
[404096574,1769827832815,-500.0,0.00016373,2]
[404096575,1769827832823,-407.69716819,0.00016373,2]
[404096576,1769827832836,-93.17790143,0.00016373,2]
[404096577,1769827832846,-500.90033899,0.00016373,2]
[404096578,1769827832856,-377.57443353,0.00016373,2]
[404096579,1769827832868,-500.0,0.00016373,2]
[404096580,1769827832877,-500.0,0.00016373,2]
[404096581,1769827832892,-509.9426966,0.00016373,2]
[404096582,1769827832902,-500.80142863,0.00016373,2]
[404096583,1769827832916,-500.0,0.00016373,2]
[404096584,1769827832924,-501.28203531,0.00016373,2]
[404096585,1769827832933,-502.36691515,0.00016373,2]
[404096586,1769827832943,-500.40144022,0.00016373,2]
[404096587,1769827832952,-500.83589738,0.00016373,2]
[404096588,1769827832961,-302.86,0.00016373,2]
[404096589,1769827832970,-166.66,0.00016404,2]
[404096590,1769827832979,-302.86,0.00016647,2]
[404096591,1769827832988,-187.43,0.00016695,2]
[404096592,1769827832997,-165.79,0.00016712,2]
[404096593,1769827833006,-1192.46951605,0.00016732,2]
[404096594,1769827833017,-160.33048395,0.00016732,2]
[404096595,1769827833027,-166.66,0.00016743,2]
[404096596,1769827833036,-14.61145809,0.00016921,2]
[404096597,1769827833055,-487.43707443,0.00016921,2]
[404096598,1769827833064,-500.0,0.00016921,2]
[404096599,1769827833073,-500.62954714,0.00016921,2]
[404096600,1769827833085,-502.09483667,0.00016921,2]
[404096601,1769827833421,-178.71486858,0.00016921,2]
[404096602,1769827833473,-320.124,0.00016921,2]
[404096603,1769827833505,-1.16113142,0.00016921,2]
[404096604,1769827833516,-302.88215005,0.00016921,2]
[404096605,1769827833529,-200.0,0.00016974,2]
[404096606,1769827833540,-166.66,0.00017081,2]
[404096607,1769827833553,-209.40437684,0.00017084,2]
[404096608,1769827833564,-174.61919141,0.00017084,2]
[404096609,1769827833575,-578.20924308,0.00017084,2]
[404096610,1769827833587,-322.6107,0.00017084,2]
[404096611,1769827833598,-44.4532072,0.00017139,2]
[404096612,1769827833611,-172.69913158,0.00017139,2]
[404096613,1769827833621,-225.18697532,0.00017194,2]
[404096614,1769827833632,-233.51889341,0.00017249,2]
[404096615,1769827833642,-242.15909246,0.00017304,2]
[404096616,1769827833651,-251.11897888,0.00017359,2]
[404096617,1769827833660,-260.4103811,0.00017414,2]
[404096618,1769827833670,-166.66,0.00017419,2]
[404096619,1769827833679,-270.0455652,0.00017469,2]
[404096620,1769827833689,-280.03725112,0.00017524,2]
[404096621,1769827833698,-187.43,0.0001753,2]
[404096622,1769827833708,-277.63511856,0.00017535,2]
[404096623,1769827833717,-12.92699089,0.00017579,2]
[404096624,1769827833729,-277.47163852,0.00017579,2]
[404096625,1769827833738,-301.1433787,0.00017634,2]
[404096626,1769827833747,-234.22234404,0.00017699,2]
[404096627,1769827833756,-854.2589148,0.00017703,2]
[404096628,1769827833766,-721.12765535,0.00017703,2]
[404096629,1769827833776,-1000.0,0.00017703,2]
[404096630,1769827833785,-807.04447401,0.00017703,2]
[404096631,1769827833798,-192.95552599,0.00017703,2]
[404096632,1769827833807,-260.82745838,0.00017703,2]
[404096633,1769827833817,-1772.11701563,0.00017703,2]
[404096634,1769827833828,-290.25760241,0.00017703,2]
[404096635,1769827833837,-45.00820304,0.00017703,2]
[404096636,1769827833848,-227.86017886,0.00017703,2]
[404096637,1769827833858,-337.81203008,0.00017703,2]
[404096638,1769827833889,-521.99402053,0.00017703,2]
[404096639,1769827833898,-396.95497947,0.00017703,2]
[404096641,1769827837952,-103.04502053,0.00017703,2]
[404096642,1769827837962,-500.0,0.00017703,2]
[404096643,1769827837972,-500.0,0.00017703,2]
[404096644,1769827837981,-500.0,0.00017703,2]
[404096645,1769827837991,-500.0,0.00017703,2]
[404096646,1769827838001,-500.0,0.00017703,2]
[404096647,1769827838010,-500.0,0.00017703,2]
[404096648,1769827838020,-500.0,0.00017703,2]
[404096649,1769827838029,-512.38502092,0.00017703,2]
[404096650,1769827838038,-1270.0,0.00017714,2]
[404096651,1769827838048,-567.0,0.00017714,2]
[404096652,1769827838057,-2444.0,0.00017714,2]
[404096653,1769827838067,-4520.827,0.00017714,2]
[404096654,1769827838076,-166.66,0.00017757,2]
[404096655,1769827838085,-677.033,0.0001784,2]
[404096656,1769827838094,-288.76892517,0.0001784,2]
[404096657,1769827838103,-420.0,0.00017893,2]
[404096658,1769827838113,-165.7629,0.00017899,2]
[404096659,1769827838122,-7617.452,0.00017899,2]
[404096660,1769827838131,-172.1956369,0.000179,2]
[404096661,1769827838140,-1000.0,0.000179,2]
[404096662,1769827838150,-161.09533848,0.000179,2]
[404096663,1769827838160,-301.0,0.000179,2]
[404096664,1769827838170,-983.0,0.000179,2]
[404096665,1769827838179,-3282.04595558,0.000179,2]
[404096666,1769827838188,-1166.6728943,0.000179,2]
[404096667,1769827838198,-307.0,0.000179,2]
[404096668,1769827838207,-200.0,0.0001791,2]
[404096669,1769827838217,-180.0,0.00017912,2]
[404096670,1769827838227,-180.0,0.00017929,2]
[404096671,1769827838236,-500.0,0.00017973,2]
[404096672,1769827838255,-500.0,0.00017973,2]
[404096673,1769827838264,-500.0,0.00017973,2]
[404096674,1769827838273,-500.0,0.00017973,2]
[404096675,1769827838283,-500.0,0.00017973,2]
[404096676,1769827838292,-313.90142666,0.00017973,2]
[404096677,1769827838301,-151.87817291,0.00017973,2]
[404096678,1769827838311,-500.0,0.00017973,2]
[404096679,1769827838320,-500.0,0.00017973,2]
[404096681,1769827838329,-500.0,0.00017973,2]
[404096683,1769827838339,-500.0,0.00017973,2]
[404096685,1769827838348,-186.51484366,0.00017973,2]
[404096687,1769827838357,-500.0,0.00017973,2]
[404096689,1769827838366,-500.0,0.00017973,2]
[404096691,1769827838376,-1680.0,0.00017982,2]
[404096693,1769827838385,-2975.5993272,0.00017985,2]
[404096695,1769827838394,-168.0,0.0001799,2]
[404096697,1769827838403,-155.0,0.00017997,2]
[404096699,1769827838413,-7299.31711184,0.00017998,2]
[404096701,1769827838421,-500.0,0.00017998,2]
[404096703,1769827838431,-304.67517094,0.00017998,2]
[404096705,1769827838440,-500.0,0.00017998,2]
[404096707,1769827838450,-500.0,0.00017998,2]
[404096709,1769827838460,-500.0,0.00017998,2]
[404096711,1769827838469,-301.58244404,0.00017998,2]
[404096713,1769827838479,-500.0,0.00017998,2]
[404096715,1769827838488,-500.0,0.00017998,2]
[404096717,1769827838497,-500.0,0.00017998,2]
[404096719,1769827838506,-598.84920357,0.00017998,2]
[404096721,1769827838516,-500.0,0.00017998,2]
[404096723,1769827838525,-500.0,0.00017998,2]
[404096725,1769827838536,-372.25724421,0.00017998,2]
[404096726,1769827838545,-500.0,0.00017998,2]
[404096728,1769827838554,-500.0,0.00017998,2]
[404096730,1769827838564,-500.0,0.00017998,2]
[404096732,1769827838573,-500.0,0.00017998,2]
[404096734,1769827838582,-500.0,0.00017998,2]
[404096736,1769827838591,-500.0,0.00017998,2]
[404096738,1769827838601,-500.0,0.00017998,2]
[404096740,1769827838610,-500.0,0.00017998,2]
[404096742,1769827838620,-500.0,0.00017998,2]
[404096744,1769827838630,-500.0,0.00017998,2]
[404096746,1769827838640,-500.0,0.00017998,2]
[404096748,1769827838650,-500.0,0.00017998,2]
[404096750,1769827838660,-500.0,0.00017998,2]
[404096752,1769827838670,-500.0,0.00017998,2]
[404096754,1769827838680,-500.0,0.00017998,2]
[404096756,1769827838691,-500.0,0.00017998,2]
[404096758,1769827838701,-500.0,0.00017998,2]
[404096760,1769827838711,-500.0,0.00017998,2]
[404096762,1769827838720,-500.0,0.00017998,2]
[404096764,1769827838730,-500.0,0.00017998,2]
[404096766,1769827838740,-500.0,0.00017998,2]
[404096768,1769827838750,-500.0,0.00017998,2]
[404096770,1769827838760,-500.0,0.00017998,2]
[404096772,1769827838770,-500.0,0.00017998,2]
[404096774,1769827838779,-500.0,0.00017998,2]
[404096776,1769827838789,-500.0,0.00017998,2]
[404096778,1769827838798,-500.0,0.00017998,2]
[404096780,1769827838807,-500.0,0.00017998,2]
[404096782,1769827838816,-631.11759619,0.00017998,2]
[404096784,1769827838827,-631.11759619,0.00017998,2]
[404096786,1769827838836,-631.11759619,0.00017998,2]
[404096788,1769827838846,-631.11759619,0.00017998,2]
[404096790,1769827838859,-631.11759619,0.00017998,2]
[404096792,1769827838873,-631.11759619,0.00017998,2]
[404096794,1769827838883,-631.11759619,0.00017998,2]
[404096796,1769827838892,-631.11759619,0.00017998,2]
[404096798,1769827838902,-631.11759619,0.00017998,2]
[404096799,1769827838912,-631.11759619,0.00017998,2]
[404096801,1769827838922,-631.11759619,0.00017998,2]
[404096830,1769827839198,-631.11759619,0.00017998,2]
[404096832,1769827839207,-631.11759619,0.00017998,2]
[404096834,1769827839216,-631.11759619,0.00017998,2]
[404096836,1769827839225,-631.11759619,0.00017998,2]
[404096838,1769827839235,-631.11759619,0.00017998,2]
[404096840,1769827839245,-631.11759619,0.00017998,2]
[404096842,1769827839265,-631.11759619,0.00017998,2]
[404096844,1769827839283,-631.11759619,0.00017998,2]
[404096845,1769827839293,-631.11759619,0.00017998,2]
[404096847,1769827839302,-631.11759619,0.00017998,2]
[404096849,1769827839313,-631.11759619,0.00017998,2]
[404096850,1769827839323,-631.11759619,0.00017998,2]
[404096852,1769827839333,-631.11759619,0.00017998,2]
[404096854,1769827839344,-631.11759619,0.00017998,2]
[404096856,1769827839355,-631.11759619,0.00017998,2]
[404096858,1769827839364,-631.11759619,0.00017998,2]
[404096860,1769827839373,-631.11759619,0.00017998,2]
[404096862,1769827839384,-631.11759619,0.00017998,2]
[404096864,1769827839393,-631.11759619,0.00017998,2]
[404096866,1769827839402,-631.11759619,0.00017998,2]
[404096868,1769827839410,-631.11759619,0.00017998,2]
[404096870,1769827839419,-631.11759619,0.00017998,2]
[404096872,1769827839428,-631.11759619,0.00017998,2]
[404096874,1769827839437,-631.11759619,0.00017998,2]
[404096876,1769827839446,-631.11759619,0.00017998,2]
[404096878,1769827839455,-631.11759619,0.00017998,2]
[404096880,1769827839464,-631.11759619,0.00017998,2]
[404096882,1769827839473,-631.11759619,0.00017998,2]
[404096884,1769827839482,-602.6554301,0.00017998,2]
[404096886,1769827839491,-602.6554301,0.00017998,2]
[404096888,1769827839500,-602.6554301,0.00017998,2]
[404096890,1769827839509,-602.6554301,0.00017998,2]
[404096892,1769827839519,-602.6554301,0.00017998,2]
[404096894,1769827839529,-602.6554301,0.00017998,2]
[404096896,1769827839538,-602.6554301,0.00017998,2]
[404096897,1769827839548,-602.6554301,0.00017998,2]
[404096899,1769827839557,-602.6554301,0.00017998,2]
[404096901,1769827839566,-602.6554301,0.00017998,2]
[404096903,1769827839575,-602.6554301,0.00017998,2]
[404096905,1769827839585,-602.6554301,0.00017998,2]
[404096907,1769827839594,-602.6554301,0.00017998,2]
[404096909,1769827839603,-602.6554301,0.00017998,2]
[404096911,1769827839612,-602.6554301,0.00017998,2]
[404096913,1769827839622,-602.6554301,0.00017998,2]
[404096915,1769827839631,-602.6554301,0.00017998,2]
[404096917,1769827839640,-1138.34914566,0.00017998,2]
[404096919,1769827839650,-272.73282557,0.00017999,2]
[404096921,1769827839660,-1290.0,0.00018,2]
[404096923,1769827839669,-15512.59729805,0.00018,2]
[404096925,1769827839683,-557.75075129,0.00018,2]
[404096930,1769827839720,-1407.60412328,0.00018,2]
[404096933,1769827839731,-1650.0,0.00018,2]
[404096935,1769827839759,-73134.69363837,0.00018,2]
[404096936,1769827839770,-711.4,0.00018,2]
[404096939,1769827839808,-771.86958136,0.00018,2]
[404096941,1769827839820,-722.46490153,0.00018,2]
[404096950,1769827840857,-1261.0047508,0.00018,2]
[404096951,1769827840968,-949.309992,0.00018,2]
[404096952,1769827840979,-1566.80826959,0.00018,2]
[404096960,1769827845935,-1120.09006599,0.0001764,2]
[404096961,1769827845946,-1591.61136201,0.0001764,2]
[404096962,1769827845956,-1305.7005,0.000179,2]
[404096963,1769827845966,-1742.16141382,0.00018,2]
[404096964,1769827846199,-11870.3767875,0.00018,2]
[404096965,1769827846210,-7317.1830909,0.00018,2]
[404096966,1769827846220,-5886.7931252,0.00018,2]
[404096967,1769827846231,-2423.14220232,0.00018,2]
[404096971,1769828742276,-165.12531965,0.00014156,2]
[404096972,1769828742360,-656.30270046,0.00014156,2]
[404096973,1769828755089,-215.24812273,0.00014156,2]
[404096974,1769828949355,-2298.98385716,0.00014156,2]
[404096975,1769828949376,-151.81145577,0.00014156,2]
[404096976,1769828956132,-115.18854423,0.00014156,2]
[404096977,1769828956154,-54.81205844,0.000158,2]
[404096978,1769828969093,-945.18794156,0.000158,2]
[404096979,1769828969114,-1000.0,0.00016,2]
[404096980,1769828969936,151.0,0.00015992,2]
[404096981,1769828987730,151.0,0.00015999,2]
[404096982,1769828988293,250.0,0.00014502,2]
[404096983,1769829004777,151.0,0.00015999,2]
[404096984,1769829020832,151.0,0.00016005,2]
[404096987,1769829032064,-163.93,0.00016315,2]
[404096988,1769829032073,-871.05113217,0.00016372,2]
[404096989,1769829032276,-328.94886783,0.00016372,2]
[404096990,1769829032286,-243.11893217,0.00016373,2]
[404096991,1769829032298,-256.88106783,0.00016373,2]
[404096992,1769829032307,-304.30456877,0.00016373,2]
[404096993,1769829032316,-431.3712179,0.00016373,2]
[404096999,1769829037785,151.0,0.00016005,2]
[404097003,1769829038209,-68.6287821,0.00016373,2]
[404097004,1769829038219,-500.0,0.00016373,2]
[404097005,1769829038228,-500.0,0.00016373,2]
[404097006,1769829038238,-500.0,0.00016373,2]
[404097007,1769829038253,-971.04,0.00016577,2]
[404097008,1769829038263,-1000.0,0.00016594,2]
[404097009,1769829038273,-200.0,0.00016608,2]
[404097010,1769829038282,-150.0,0.00016616,2]
[404097011,1769829038293,-157.08,0.00016684,2]
[404097012,1769829038303,-1389.9,0.00016822,2]
[404097013,1769829038313,-572.26,0.00016887,2]
[404097014,1769829038323,-67.03231959,0.00016921,2]
[404097015,1769829038344,-440.59519683,0.00016921,2]
[404097016,1769829038353,-625.92631769,0.00016921,2]
[404097017,1769829038363,-500.95157196,0.00016921,2]
[404097018,1769829038372,-503.6461641,0.00016921,2]
[404097019,1769829038382,-501.71883673,0.00016921,2]
[404097020,1769829038391,-188.28,0.00016921,2]
[404097021,1769829038400,-322.6107,0.00017099,2]
[404097022,1769829038410,-211.27658904,0.00017099,2]
[404097023,1769829038420,-209.40437684,0.00017099,2]
[404097024,1769829038429,-217.15233878,0.00017154,2]
[404097025,1769829038439,-225.18697532,0.00017209,2]
[404097026,1769829038448,-233.51889341,0.00017264,2]
[404097027,1769829038458,-163.93,0.00017303,2]
[404097028,1769829038467,-242.15909246,0.00017319,2]
[404097029,1769829038477,-251.11897888,0.00017374,2]
[404097031,1769829038487,-260.4103811,0.00017429,2]
[404097033,1769829038496,-270.0455652,0.00017484,2]